fUSD/lending_fUSD_20241019
["ID","MTS","AMOUNT","RATE_DAILY","PERIOD"]
[340500900,1729357846321,450.0,0.00018,2]
[340500901,1729357921314,161.0,0.00019725,2]
[340500902,1729357993600,500.0,0.00026827,120]
[340500903,1729358035080,2000.0,0.00023655,120]
[340500904,1729358123387,646.93,0.00025707,120]
[340500905,1729358167136,180.0,0.0002498,120]
[340500906,1729358593893,500.0,0.00026913,120]
[340500907,1729358658951,190.6,0.00024687,120]
[340500908,1729358729595,6636.64752152,0.000101,2]
[340500909,1729358840128,-2530.91515238,0.00010673,2]
[340500910,1729358843095,-540.08484762,0.00010673,2]
[340500911,1729358843115,-182.92417128,0.000109,2]
[340500912,1729358843135,-135.22519386,0.000109,2]
[340500913,1729358961085,-579.98128703,0.000109,2]
[340500914,1729358961105,-156.44,0.00010959,2]
[340500915,1729358961125,-173.32,0.00010959,2]
[340500916,1729358961145,-866.62,0.00010959,2]
[340500917,1729358961165,-6014.07538201,0.00010973,2]
[340500918,1729358961185,-150.0,0.00010998,2]
[340500919,1729358961204,-522.63876622,0.00010998,2]
[340500920,1729358961224,-1000.0,0.00010999,2]
[340500921,1729358961244,-458.23331082,0.00010999,2]
[340500922,1729358961265,-500.0,0.00010999,2]
[340500923,1729358961285,-500.0,0.00010999,2]
[340500924,1729358961305,-500.0,0.00010999,2]
[340500925,1729358961326,-500.0,0.00010999,2]
[340500926,1729358961345,-504.0254689,0.00010999,2]
[340500927,1729358961366,-500.0,0.00010999,2]
[340500928,1729358961386,-500.0,0.00010999,2]
[340500929,1729358961405,-550.12736097,0.00010999,2]
[340500930,1729358961425,-427.14727838,0.00010999,2]
[340500931,1729358961446,-481.67204763,0.00010999,2]
[340500932,1729358961466,-500.0,0.00010999,2]
[340500933,1729358961486,-500.0,0.00010999,2]
[340500934,1729358961506,-500.0,0.00010999,2]
[340500935,1729358961525,-500.0,0.00010999,2]
[340500936,1729358961547,-500.0,0.00010999,2]
[340500937,1729358961567,-500.0,0.00010999,2]
[340500938,1729358961588,-500.0,0.00010999,2]
[340500939,1729358961610,-500.0,0.00010999,2]
[340500940,1729358961634,-24405.36689804,0.00011,2]
[340500941,1729358964118,-12228.91008375,0.00011,2]
[340500949,1729359031835,-256.41264469,0.000109,2]
[340500950,1729359031896,-857.30470671,0.000109,2]
[340500951,1729359031907,-684.71155543,0.000109,2]
[340500952,1729359031918,-1707.6321892,0.000109,2]
[340500953,1729359031927,-1951.5920661,0.000109,2]
[340500954,1729359031936,-231.58002085,0.000109,2]
[340500955,1729359031945,-150.0,0.00010999,2]
[340500956,1729359031954,-952.61972385,0.00011,2]
[340500957,1729359031965,-7914.48,0.00011,2]
[340500958,1729359031976,-2300.0,0.00011,2]
[340500959,1729359031987,-729946.50828218,0.00011,2]
[340500960,1729359032000,-1800.0,0.00011,2]
[340500961,1729359032011,-854.80884198,0.00011,2]
[340500962,1729359032025,-5083.0,0.00011,2]
[340500963,1729359032036,-2184.65955953,0.00011,2]
[340500964,1729359032047,-497.65536239,0.00011,2]
[340500965,1729359032087,-3949.7614307,0.00011,2]
[340500966,1729359032098,-7098.22734583,0.00011,2]
[340500967,1729359032109,-400951.47755064,0.00011,2]
[340500968,1729359032121,-6817.17459968,0.00011,2]
[340500969,1729359032133,-726.67746112,0.00011,2]
[340500970,1729359032143,-2415.25548224,0.00011,2]
[340500974,1729359037922,-712663.9493552,0.00011,2]
[340500976,1729359037934,-287903.1475,0.00011,2]
[340500977,1729359037946,-15540.53549944,0.00011,2]
[340500978,1729359037986,-2000.0,0.00011,2]
[340501009,1729359039912,-354.76611255,0.00011,2]
[340501011,1729359039925,-1615.981716,0.00011,2]
[340501017,1729359039972,-176725.45230648,0.00011,2]
[340501029,1729359040089,-1182.8,0.00011,2]
[340501037,1729359040154,-371.85194778,0.00011,2]
[340501039,1729359040166,-10802.07936784,0.00011,2]
[340501045,1729359040214,-317481.79405008,0.00011,2]
[340501123,1729359042888,-864.39422921,0.00011,2]
[340501124,1729359042947,-302.36040144,0.00011,2]
[340501125,1729359043007,-111612.19511276,0.00011,2]
[340501135,1729359045876,-392.92653395,0.00011,2]
[340501136,1729359045888,-3395.13777113,0.00011,2]
[340501137,1729359045899,-3097.99853864,0.00011,2]
[340501138,1729359045993,-303.54349999,0.00011,2]
[340501139,1729359046005,-11476.78971052,0.00011,2]
[340501140,1729359046017,-48232.05777663,0.00011,2]
[340501141,1729359046163,-377.077714,0.00011,2]
[340501143,1729359053403,-351.94881567,0.00010999,2]
[340501144,1729359053425,-195.63580702,0.00010999,2]
[340501145,1729359053452,-6652.41537731,0.00011,2]
[340501147,1729359194006,500.0,0.00026928,120]
[340501148,1729359617891,193.11,0.00010076,2]
[340501149,1729359648748,250.0,0.0001,2]
[340501150,1729360035141,-624.32706043,0.00010677,2]
[340501151,1729360046131,-102.77293957,0.00010677,2]
[340501152,1729360046152,-121.88590703,0.00010779,2]
[340501153,1729360050093,-150.0,0.00010658,2]
[340501154,1729360050117,-178.11409297,0.00010779,2]
[340501155,1729360050137,-6.4145171,0.0001078,2]
[340501156,1729360132064,705.49,8.945e-05,2]
[340501157,1729360160077,-150.0,0.00010771,2]
[340501158,1729360160097,-311.6094,0.0001078,2]
[340501159,1729360160121,-286.97921043,0.0001078,2]
[340501170,1729360232083,-200.0,0.00010486,2]
[340501171,1729360232093,-1000.0,0.00010655,2]
[340501172,1729360232102,-300.0,0.0001075,2]
[340501173,1729360232112,-115.89349077,0.00010751,2]
[340501174,1729360232167,-1182.73708964,0.00010751,2]
[340501175,1729360232322,-1023.36525247,0.00010751,2]
[340501176,1729360232333,-992.20371602,0.00010751,2]
[340501177,1729360232344,-470.63449296,0.00010751,2]
[340501178,1729360232356,-9734.41595814,0.00010751,2]
[340501179,1729360232365,-150.0,0.00010769,2]
[340501180,1729360232375,-10562.08821879,0.00010769,2]
[340501181,1729360232384,-16861.60387247,0.0001078,2]
[340501182,1729360232393,-170.679,0.0001078,2]
[340501183,1729360232402,-250.0,0.00010821,2]
[340501184,1729360232411,-150.0,0.00010899,2]
[340501185,1729360232421,-160.60793927,0.000109,2]
[340501186,1729360232430,-4929.35198176,0.000109,2]
[340501187,1729360232440,-922.58,0.00010907,2]
[340501188,1729360232450,-150.0,0.00010932,2]
[340501189,1729360232460,-477.20756348,0.00010958,2]
[340501190,1729360232469,-161.53,0.00010959,2]
[340501191,1729360232479,-150.99,0.00010959,2]
[340501192,1729360232488,-5651.01,0.00010959,2]
[340501193,1729360232498,-968.11,0.00010959,2]
[340501194,1729360232507,-250.0,0.00010959,2]
[340501195,1729360232516,-390.18127622,0.00010973,2]
[340501196,1729360232526,-8471.9,0.00010973,2]
[340501197,1729360232536,-150.99,0.00010973,2]
[340501198,1729360232545,-500.0,0.00010973,2]
[340501199,1729360232554,-500.0,0.00010973,2]
[340501200,1729360232563,-412.60561762,0.00010999,2]
[340501201,1729360232573,-6917.89998678,0.00010999,2]
[340501202,1729360232582,-499.99,0.00010999,2]
[340501203,1729360232765,-679.83,0.00010999,2]
[340501204,1729360232776,-299.99,0.00010999,2]
[340501205,1729360232785,-451.25,0.00010999,2]
[340501206,1729360232795,-152.11531837,0.00010999,2]
[340501207,1729360232804,-474987.84536915,0.00011,2]
[340501208,1729360232815,-527981.49347122,0.00011,2]
[340501209,1729360232836,-583284.13885298,0.00011,2]
[340501210,1729360238203,-5037.25274,0.00011,2]
[340501211,1729360238219,-49215.27585367,0.00011,2]
[340501212,1729360238228,-44265.96430457,0.00011,2]
[340501213,1729360238237,-150.0,0.00011078,2]
[340501214,1729360238246,-23900.0,0.00011104,2]
[340501215,1729360238255,-705.49,0.00011209,2]
[340501216,1729360238264,-1163.38,0.00011271,2]
[340501217,1729360238273,-423.4863398,0.00011301,2]
[340501218,1729360238284,-517.54,0.00011398,2]
[340501219,1729360238294,-2751.0,0.00011507,2]
[340501220,1729360238303,-441.13,0.00011747,2]
[340501221,1729360238312,-349.54,0.00011869,2]
[340501222,1729360238321,-255.0,0.00011945,2]
[340501223,1729360238330,-1000.0,0.00011987,2]
[340501224,1729360238338,-300.0,0.00012,2]
[340501225,1729360238347,-240.4,0.00012019,2]
[340501226,1729360238356,-250.0,0.00012019,2]
[340501227,1729360238365,-171.06,0.00012033,2]
[340501228,1729360238374,-1194.29,0.00012259,2]
[340501229,1729360238383,-509.93640327,0.00012342,2]
[340501230,1729360238392,-1000.0,0.00012342,2]
[340501231,1729360238401,-4929.35198173,0.00012456,2]
[340501232,1729360238410,-517.54,0.00012823,2]
[340501233,1729360238419,-348.0,0.0001309,2]
[340501234,1729360238428,-1500.0,0.00013177,2]
[340501235,1729360238438,-1000.0,0.00013319,2]
[340501236,1729360238447,-705.49,0.00013473,2]
[340501237,1729360238456,-500.0,0.00013673,2]
[340501238,1729360238465,-500.0,0.00013673,2]
[340501239,1729360238475,-500.0,0.00013698,2]
[340501240,1729360238484,-788.0,0.00013699,2]
[340501241,1729360238493,-182545.0,0.00013699,2]
[340501242,1729360238501,-200.0,0.00013699,2]
[340501243,1729360238510,-500.0,0.00013699,2]
[340501244,1729360238519,-255049.36167,0.000139,3]
[340501245,1729360238529,-250.0,0.000139,2]
[340501246,1729360238538,-285.4,0.000139,2]
[340501247,1729360238547,-350.0,0.00014,2]
[340501248,1729360238556,-4929.35198173,0.00014011,2]
[340501249,1729360238565,-517.54,0.00014247,2]
[340501250,1729360238574,-1115.65152882,0.00014346,2]
[340501251,1729360238583,-1000.0,0.0001465,2]
[340501252,1729360238592,-212.70093833,0.000149,2]
[340501253,1729360238601,-212.70093833,0.000149,2]
[340501254,1729360238611,-212.70093833,0.000149,2]
[340501255,1729360238619,-805.61,0.00014998,2]
[340501256,1729360238628,-300.0,0.00015068,2]
[340501257,1729360238637,-5152.6249,0.00015534,2]
[340501258,1729360238647,-4929.35198173,0.00015567,2]
[340501259,1729360238656,-517.54,0.00015672,2]
[340501260,1729360238665,-705.49,0.00015737,2]
[340501261,1729360238674,-805.61,0.00015748,2]
[340501262,1729360238683,-158.91,0.00015968,2]
[340501263,1729360238692,-1000.0,0.00015982,2]
[340501264,1729360238702,-400.0,0.00016,2]
[340501265,1729360238711,-440.05,0.00016116,2]
[340501266,1729360238720,-300.0,0.00016438,2]
[340501267,1729360238729,-150.01,0.00016438,2]
[340501269,1729360238738,-199.69,0.00016438,2]
[340501270,1729360238747,-805.61,0.00016498,2]
[340501272,1729360238757,-154.75,0.00016712,2]
[340501274,1729360238766,-167.0,0.00016847,2]
[340501275,1729360238775,-517.54,0.00017097,2]
[340501277,1729360238784,-4929.35198173,0.00017122,2]
[340501279,1729360238793,-150.01,0.00017123,2]
[340501280,1729360238803,-1194.29,0.00017163,2]
[340501281,1729360238812,-805.61,0.00017248,2]
[340501282,1729360238822,-871.0,0.000177,3]
[340501283,1729360238831,-150.01,0.00017808,2]
[340501284,1729360238840,-160.60793925,0.000179,2]
[340501285,1729360238849,-805.61,0.00017997,2]
[340501286,1729360238857,-450.0,0.00018,2]
[340501287,1729360238866,-705.49,0.00018001,2]
[340501288,1729360238875,-2237.0,0.000183,3]
[340501289,1729360238884,-150.01,0.00018493,2]
[340501290,1729360238894,-4929.35198173,0.00018678,2]
[340501291,1729360238903,-150.01,0.00019178,2]
[340501292,1729360238912,-167.0,0.00019628,2]
[340501293,1729360238922,-150.01,0.00019863,2]
[340501294,1729360238931,-158.91,0.0001996,2]
[340501295,1729360238940,-16178.42151107,0.0002,2]
[340501296,1729360238949,-500.0,0.0002,2]
[340501297,1729360238958,-1000.0,0.0002,2]
[340501298,1729360238968,-151.49,0.0002,2]
[340501299,1729360238977,-151.49,0.0002,2]
[340501300,1729360238986,-151.49,0.0002,2]
[340501301,1729360238995,-151.49,0.0002,2]
[340501302,1729360239005,-151.49,0.0002,2]
[340501303,1729360239014,-151.49,0.0002,2]
[340501304,1729360239023,-688.0,0.00020217,2]
[340501305,1729360239033,-4929.35198173,0.00020233,2]
[340501306,1729360239043,-705.49,0.00020265,2]
[340501307,1729360239052,-204.0,0.0002032,2]
[340501308,1729360239061,-150.01,0.00020548,2]
[340501309,1729360239070,-150.01,0.00021233,2]
[340501310,1729360239079,-503.75624971,0.000217,2]
[340501311,1729360239088,-204.0,0.0002178,2]
[340501312,1729360239096,-4929.35198173,0.00021789,2]
[340501313,1729360239106,-500.0,0.000219,2]
[340501314,1729360239115,-375.0,0.00021917,2]
[340501315,1729360239124,-2500.0,0.00021917,2]
[340501316,1729360239133,-2500.0,0.00021917,2]
[340501317,1729360239142,-2500.0,0.00021917,2]
[340501318,1729360239151,-2500.0,0.00021917,2]
[340501319,1729360239159,-2500.0,0.00021917,2]
[340501320,1729360239168,-2500.0,0.00021917,2]
[340501321,1729360239177,-2500.0,0.00021917,2]
[340501322,1729360239187,-2500.0,0.00021917,2]
[340501323,1729360239196,-2500.0,0.00021917,2]
[340501324,1729360239205,-2500.0,0.00021917,2]
[340501325,1729360239214,-174.57,0.00021918,2]
[340501326,1729360239223,-150.01,0.00021918,2]
[340501327,1729360239232,-190.6,0.00021944,2]
[340501328,1729360239242,-500.0,0.00021973,2]
[340501329,1729360239250,-550.0,0.00022,2]
[340501330,1729360239259,-502.19950538,0.000221,2]
[340501331,1729360239268,-705.49,0.00022528,2]
[340501332,1729360239277,-150.01,0.00022603,2]
[340501333,1729360239287,-500.0,0.000229,2]
[340501334,1729360239300,-164.51,0.00023001,2]
[340501335,1729360239310,-1244.0,0.0002303,2]
[340501336,1729360239319,-812.0,0.0002303,2]
[340501337,1729360239328,-449.0,0.0002303,2]
[340501338,1729360239337,-560.0,0.0002303,2]
[340501339,1729360239346,-3120.582,0.0002303,2]
[340501340,1729360239355,-1908.0,0.0002303,2]
[340501341,1729360239364,-809.0,0.0002303,2]
[340501342,1729360239373,-150.664,0.0002303,2]
[340501343,1729360239383,-1150.0,0.0002303,2]
[340501344,1729360239392,-13537.0,0.0002303,2]
[340501345,1729360239401,-5886.0,0.0002303,2]
[340501346,1729360239411,-1084.0,0.0002303,2]
[340501347,1729360239420,-569.21,0.00023096,2]
[340501348,1729360239430,-491.1,0.00023096,2]
[340501349,1729360239440,-1148.04,0.000231,14]
[340501350,1729360239450,-10000.0,0.00023117,2]
[340501351,1729360239461,-204.0,0.0002323,2]
[340501352,1729360239471,-150.01,0.00023288,2]
[340501353,1729360239480,-1000.0,0.00023342,2]
[340501354,1729360239489,-4929.35198173,0.00023344,2]
[340501355,1729360239499,-859.7,0.0002337,2]
[340501356,1729360239509,-1070.98,0.0002337,2]
[340501357,1729360239518,-300.0,0.0002337,2]
[340501358,1729360239528,-718.84,0.0002337,2]
[340501359,1729360239542,-150.0,0.0002337,2]
[340501360,1729360239552,-300.0,0.0002337,2]
[340501361,1729360239562,-156.81,0.00023641,2]
[340501362,1729360239571,-156.81,0.00023655,2]
[340501363,1729360239580,-156.81,0.0002367,2]
[340501364,1729360239590,-156.81,0.00023685,2]
[340501365,1729360239599,-156.81,0.000237,2]
[340501366,1729360239609,-156.81,0.00023714,2]
[340501367,1729360239619,-156.81,0.00023729,2]
[340501368,1729360239629,-156.81,0.00023744,2]
[340501369,1729360239638,-156.81,0.00023759,2]
[340501370,1729360239648,-200736.94360601,0.000238,2]
[340501371,1729360239657,-1396.0,0.000238,2]
[340501372,1729360239667,-500.0,0.000239,2]
[340501373,1729360239677,-164.51,0.0002395,2]
[340501374,1729360239686,-158.91,0.00023952,2]
[340501375,1729360239696,-150.01,0.00023973,2]
[340501376,1729360239706,-233.69,0.00024,2]
[340501377,1729360239715,-600.0,0.00024,2]
[340501378,1729360239724,-150.0,0.00024192,2]
[340501379,1729360239733,-750.0,0.00024657,2]
[340501380,1729360239743,-500.0,0.00024658,7]
[340501381,1729360239752,-150.01,0.00024658,2]
[340501382,1729360239762,-152.175716,0.00024666,7]
[340501383,1729360239771,-157.281,0.0002467,2]
[340501384,1729360239780,-204.0,0.0002469,2]
[340501385,1729360239790,-1148.04,0.000247,14]
[340501386,1729360239800,-730.5,0.000247,2]
[340501387,1729360239809,-360.0,0.000247,2]
[340501388,1729360239818,-1000.0,0.000247,2]
[340501389,1729360239828,-435.0,0.000247,2]
[340501390,1729360239837,-961.1,0.000247,2]
[340501392,1729360239847,-150.0,0.00024706,2]
[340501394,1729360239856,-150.0,0.00024733,2]
[340501395,1729360239865,-150.0,0.00024742,2]
[340501396,1729360239875,-150.0,0.00024743,2]
[340501397,1729360239884,-150.0,0.00024747,2]
[340501398,1729360239894,-151.33255264,0.00024747,2]
[340501399,1729360239903,-11937.13118189,0.0002475,2]
[340501401,1729360239912,-150.0,0.00024756,2]
[340501402,1729360239922,-150.0,0.00024758,2]
[340501403,1729360239931,-150.0,0.00024761,2]
[340501404,1729360239941,-150.0,0.00024767,2]
[340501405,1729360239950,-150.0,0.0002477,2]
[340501406,1729360239960,-150.0,0.00024771,2]
[340501407,1729360239969,-386.65419134,0.0002478,2]
[340501408,1729360239979,-180.30652357,0.0002478,4]
[340501409,1729360239988,-2337.37406402,0.0002478,2]
[340501411,1729360239997,-150.0,0.00024783,2]
[340501413,1729360240007,-705.49,0.00024792,2]
[340501415,1729360240016,-150.0,0.00024806,2]
[340501417,1729360240025,-1500.0,0.00024819,2]
[340501418,1729360240035,-1500.0,0.00024825,2]
[340501419,1729360240044,-190.89162778,0.00024826,2]
[340501420,1729360240054,-150.0,0.00024833,2]
[340501421,1729360240063,-386.65419134,0.0002484,2]
[340501422,1729360240073,-2337.37406402,0.0002484,2]
[340501423,1729360240082,-150.0,0.00024849,2]
[340501424,1729360240092,-150.0,0.00024851,2]
[340501425,1729360240101,-1500.0,0.0002487,2]
[340501426,1729360240110,-151.49,0.0002487,2]
[340501427,1729360240120,-151.49,0.0002487,2]
[340501428,1729360240129,-1500.0,0.00024876,2]
[340501429,1729360240139,-151.94,0.00024877,30]
[340501430,1729360240148,-150.0,0.00024878,2]
[340501431,1729360240158,-2500.0,0.00024879,2]
[340501432,1729360240167,-2500.0,0.00024879,2]
[340501433,1729360240177,-412613.0281028,0.0002488,7]
[340501434,1729360240186,-151.0,0.0002488,7]
[340501435,1729360240195,-151.0,0.0002488,7]
[340501436,1729360240204,-151.0,0.0002488,7]
[340501437,1729360240214,-151.0,0.0002488,7]
[340501438,1729360240223,-151.0,0.0002488,7]
[340501439,1729360240233,-151.0,0.0002488,7]
[340501440,1729360240243,-151.0,0.0002488,7]
[340501441,1729360240252,-151.0,0.0002488,7]
[340501442,1729360240262,-151.0,0.0002488,7]
[340501443,1729360240271,-150.0,0.0002488,2]
[340501444,1729360240280,-151.0,0.0002488,7]
[340501445,1729360240289,-151.273443,0.0002488,7]
[340501446,1729360240299,-511.568454,0.0002488,7]
[340501447,1729360240308,-151.0,0.0002488,7]
[340501448,1729360240318,-151.0,0.0002488,7]
[340501449,1729360240329,-151.0,0.0002488,7]
[340501450,1729360240339,-151.0,0.0002488,7]
[340501451,1729360240348,-151.0,0.0002488,7]
[340501452,1729360240358,-758.484868,0.0002488,7]
[340501453,1729360240367,-758.484868,0.0002488,7]
[340501454,1729360240380,-151.0,0.0002488,7]
[340501455,1729360240388,-151.0,0.0002488,7]
[340501456,1729360240397,-151.0,0.0002488,7]
[340501457,1729360240406,-151.0,0.0002488,7]
[340501459,1729360240417,-150.0,0.00024891,2]
[340501461,1729360240427,-164.51,0.00024899,2]
[340501463,1729360240437,-2500.0,0.00024899,2]
[340501465,1729360240446,-500.0,0.000249,2]
[340501467,1729360240455,-150.0,0.000249,2]
[340501469,1729360240465,-250000.0,0.000249,2]
[340501471,1729360240474,-151.0,0.000249,7]
[340501474,1729360240483,-150.0,0.000249,13]
[340501476,1729360240492,-151.0,0.000249,7]
[340501478,1729360240501,-151.0,0.000249,7]
[340501480,1729360240511,-160.60793925,0.000249,2]
[340501482,1729360240521,-4929.35198173,0.000249,2]
[340501484,1729360240531,-500.0,0.000249,2]
[340501486,1729360240540,-386.65419134,0.000249,2]
[340501488,1729360240550,-150.0,0.00024903,2]
[340501490,1729360240559,-150.0,0.00024917,2]
[340501491,1729360240569,-150.0,0.00024921,2]
[340501494,1729360240578,-500.0,0.00024931,2]
[340501495,1729360240587,-500.0,0.00024931,2]
[340501497,1729360240597,-500.0,0.00024931,2]
[340501500,1729360240606,-500.0,0.00024931,2]
[340501501,1729360240616,-500.0,0.00024931,2]
[340501503,1729360240625,-500.0,0.00024931,2]
[340501505,1729360240635,-500.0,0.00024931,2]
[340501506,1729360240643,-566.13409369,0.00024931,2]
[340501507,1729360240653,-476.94885148,0.00024931,2]
[340501508,1729360240662,-500.0,0.00024931,2]
[340501509,1729360240671,-500.0,0.00024931,2]
[340501510,1729360240680,-500.0,0.00024931,2]
[340501511,1729360240689,-500.0,0.00024931,2]
[340501512,1729360240698,-500.0,0.00024931,2]
[340501513,1729360240708,-500.0,0.00024931,2]
[340501514,1729360240717,-500.0,0.00024931,2]
[340501515,1729360240727,-500.0,0.00024931,2]
[340501516,1729360240736,-500.0,0.00024931,2]
[340501517,1729360240746,-535.32075714,0.00024931,2]
[340501518,1729360240755,-500.0,0.00024931,2]
[340501519,1729360240765,-647.72117871,0.00024931,2]
[340501520,1729360240774,-309.17630089,0.00024931,2]
[340501521,1729360240784,-500.0,0.00024931,2]
[340501522,1729360240793,-500.0,0.00024931,2]
[340501523,1729360240803,-500.0,0.00024931,2]
[340501525,1729360240812,-500.0,0.00024931,2]
[340501527,1729360240822,-500.0,0.00024931,2]
[340501529,1729360240831,-500.0,0.00024931,2]
[340501531,1729360240840,-500.0,0.00024931,2]
[340501533,1729360240849,-500.0,0.00024931,2]
[340501535,1729360240858,-500.0,0.00024931,2]
[340501536,1729360240867,-500.0,0.00024931,2]
[340501538,1729360240876,-150.0,0.00024936,2]
[340501540,1729360240886,-150.0,0.00024949,2]
[340501542,1729360240895,-150.0,0.00024952,2]
[340501544,1729360240905,-150.0,0.00024953,2]
[340501545,1729360240913,-150.0,0.00024957,2]
[340501547,1729360240923,-151.49,0.00024962,2]
[340501549,1729360240933,-500.0,0.00024965,2]
[340501551,1729360240943,-151.49,0.00024967,2]
[340501553,1729360240953,-300.0,0.00024969,2]
[340501569,1729360241098,-150.0,0.00024971,2]
[340501571,1729360241108,-151.0,0.00024972,7]
[340501574,1729360241118,-4135.534851,0.00024972,2]
[340501575,1729360241128,-150.0,0.00024972,2]
[340501577,1729360241138,-1495.797753,0.00024972,2]
[340501579,1729360241147,-29284.0690635,0.00024972,2]
[340501581,1729360241156,-150.0,0.00024973,2]
[340501583,1729360241165,-151.49,0.00024973,2]
[340501585,1729360241175,-810.94684632,0.00024975,2]
[340501587,1729360241184,-150.0,0.00024976,30]
[340501589,1729360241193,-2500.0,0.00024976,2]
[340501591,1729360241202,-2500.0,0.00024976,2]
[340501593,1729360241211,-2500.0,0.00024976,2]
[340501595,1729360241220,-500.0,0.00024976,2]
[340501597,1729360241230,-500.0,0.00024976,2]
[340501599,1729360241239,-151.49,0.00024976,2]
[340501600,1729360241248,-151.49,0.00024976,2]
[340501602,1729360241258,-2500.0,0.00024977,5]
[340501604,1729360241268,-234249.48265165,0.00024977,5]
[340501607,1729360241286,-119575.3277596,0.00024977,5]
[340501609,1729360241297,-8193.89789229,0.00024977,5]
[340501611,1729360241308,-2966.07400033,0.00024977,5]
[340501614,1729360241319,-4389.17592157,0.00024977,5]
[340501615,1729360241330,-749.86877271,0.00024977,5]
[340501616,1729360241341,-3199.00243035,0.00024977,5]
[340501617,1729360241353,-610.82407843,0.00024977,5]
[340501618,1729360241364,-451.05050679,0.00024977,5]
[340501619,1729360241611,-2337.37406402,0.000249,2]
[340501620,1729360241621,-4840.48013538,0.00024977,5]
[340501621,1729360241632,-82746.0647237,0.00024977,5]
[340501622,1729360241643,-61608.06217202,0.00024977,5]
[340501623,1729360241654,-4086.77261693,0.00024977,5]
[340501624,1729360241666,-389.44550813,0.00024977,5]
[340501625,1729360241677,-606.78121519,0.00024977,5]
[340501626,1729360241688,-612.94499999,0.00024977,5]
[340501627,1729360241699,-380.119997,0.00024977,5]
[340501628,1729360243050,-810.94684632,0.00024975,2]
[340501629,1729360243059,-284.83530422,0.00024977,5]
[340501631,1729360243163,-5814.52403719,0.00024977,5]
[340501632,1729360243175,-20447.21160229,0.00024977,5]
[340501633,1729360243186,-452.38000034,0.00024977,5]
[340501634,1729360243332,-2581.2614539,0.00024977,5]
[340501635,1729360243344,-1858.93673647,0.00024977,5]
[340501636,1729360243355,-10398.46343253,0.00024977,5]
[340501637,1729360243365,-151.0,0.00024977,7]
[340501638,1729360243374,-151.0,0.00024977,7]
[340501639,1729360243384,-235.97,0.00024977,7]
[340501640,1729360243394,-151.0,0.00024977,7]
[340501641,1729360243404,-151.0,0.00024977,7]
[340501642,1729360243414,-151.0,0.00024977,7]
[340501643,1729360243423,-151.0,0.00024977,7]
[340501644,1729360243432,-151.0,0.00024977,7]
[340501645,1729360243442,-151.0,0.00024977,7]
[340501646,1729360243453,-521.677531,0.00024977,7]
[340501647,1729360243464,-521.677531,0.00024977,7]
[340501648,1729360243473,-151.0,0.00024977,7]
[340501649,1729360243482,-151.0,0.00024977,7]
[340501650,1729360243492,-151.0,0.00024977,7]
[340501651,1729360243502,-151.0,0.00024977,7]
[340501652,1729360243511,-199.485004,0.00024977,7]
[340501653,1729360243521,-151.0,0.00024977,7]
[340501654,1729360243531,-151.0,0.00024977,7]
[340501655,1729360243540,-273.654676,0.00024977,7]
[340501656,1729360243550,-151.0,0.00024977,7]
[340501657,1729360243559,-151.0,0.00024977,7]